fUST/lending_fUST_20251026
["ID","MTS","AMOUNT","RATE_DAILY","PERIOD"]
[392379849,1761412251453,-500.0,0.00017062,2]
[392379850,1761412251462,-500.0,0.00017062,2]
[392379851,1761412251471,-500.0,0.00017062,2]
[392379852,1761412251481,-500.0,0.00017062,2]
[392379853,1761412251491,-516.96695642,0.00017063,2]
[392379854,1761412251504,-500.0,0.00017063,2]
[392379855,1761412251514,-500.0,0.00017063,2]
[392379856,1761412251524,-500.0,0.00017063,2]
[392379857,1761412251533,-500.0,0.00017063,2]
[392379858,1761412251543,-500.0,0.00017063,2]
[392379859,1761412251552,-500.0,0.00017063,2]
[392379860,1761412251562,-500.0,0.00017063,2]
[392379861,1761412251571,-500.0,0.00017063,2]
[392379862,1761412251580,-500.0,0.00017063,2]
[392379863,1761412251589,-500.0,0.00017063,2]
[392379864,1761412251598,-500.0,0.00017063,2]
[392379865,1761412251606,-500.0,0.00017063,2]
[392379866,1761412251616,-500.0,0.00017063,2]
[392379867,1761412251625,-500.0,0.00017063,2]
[392379868,1761412251634,-500.0,0.00017063,2]
[392379869,1761412251643,-500.0,0.00017063,2]
[392379870,1761412251652,-500.0,0.00017063,2]
[392379871,1761412251661,-500.0,0.00017063,2]
[392379872,1761412251717,-500.0,0.00017063,2]
[392379873,1761412251726,-500.0,0.00017063,2]
[392379874,1761412251736,-500.0,0.00017063,2]
[392379875,1761412251745,-500.0,0.00017063,2]
[392379876,1761412251754,-500.0,0.00017063,2]
[392379877,1761412251768,-500.0,0.00017063,2]
[392379878,1761412251776,-500.0,0.00017063,2]
[392379879,1761412251785,-1166.87,0.00017063,2]
[392379880,1761412251794,-500.0,0.00017063,2]
[392379881,1761412251803,-500.0,0.00017063,2]
[392379882,1761412251813,-500.0,0.00017063,2]
[392379883,1761412251822,-500.0,0.00017063,2]
[392379884,1761412251831,-254.17368377,0.00017063,2]
[392379885,1761412251840,-500.0,0.00017063,2]
[392379886,1761412251849,-500.0,0.00017063,2]
[392379887,1761412251859,-255.37538662,0.00017063,2]
[392379888,1761412251868,-182.25952391,0.00017063,2]
[392379889,1761412251877,-500.0,0.00017063,2]
[392379890,1761412251887,-151.0,0.00017063,2]
[392379891,1761412251896,-153.9055344,0.00017063,2]
[392379892,1761412251907,-188.28490369,0.00017063,2]
[392379893,1761412251916,-152.09930056,0.00017063,2]
[392379894,1761412251925,-151.0,0.00017063,2]
[392379895,1761412251934,-500.0,0.00017063,2]
[392379896,1761412251943,-151.0,0.00017063,2]
[392379897,1761412251952,-500.0,0.00017063,2]
[392379898,1761412251961,-153.24508914,0.00017063,2]
[392379899,1761412251970,-506.4097006,0.00017063,2]
[392379900,1761412251979,-153.84486882,0.00017063,2]
[392379901,1761412251988,-153.67957206,0.00017063,2]
[392379902,1761412251997,-500.0,0.00017063,2]
[392379903,1761412252006,-236.40557406,0.00017063,2]
[392379904,1761412252015,-500.0,0.00017063,2]
[392379905,1761412252025,-500.0,0.00017063,2]
[392379906,1761412252039,-500.0,0.00017063,2]
[392379907,1761412252048,-500.0,0.00017063,2]
[392379908,1761412252057,-530.16,0.00017063,2]
[392379909,1761412252067,-488.99168523,0.00017063,2]
[392379910,1761412252078,-500.0,0.00017063,2]
[392379911,1761412252086,-500.0,0.00017063,2]
[392379912,1761412252095,-1204.1,0.00017063,2]
[392379913,1761412252104,-500.0,0.00017063,2]
[392379914,1761412252114,-500.0,0.00017063,2]
[392379915,1761412252122,-500.0,0.00017063,2]
[392379916,1761412252132,-500.0,0.00017063,2]
[392379917,1761412252141,-500.0,0.00017063,2]
[392379918,1761412252150,-500.0,0.00017063,2]
[392379919,1761412252159,-500.0,0.00017063,2]
[392379920,1761412252168,-500.0,0.00017063,2]
[392379921,1761412252177,-500.0,0.00017063,2]
[392379922,1761412252186,-1469.53,0.00017063,2]
[392379923,1761412252194,-500.0,0.00017063,2]
[392379924,1761412252203,-500.0,0.00017063,2]
[392379925,1761412252212,-500.0,0.00017063,2]
[392379926,1761412252221,-500.0,0.00017063,2]
[392379927,1761412252231,-500.0,0.00017063,2]
[392379928,1761412252240,-500.0,0.00017063,2]
[392379929,1761412252249,-500.0,0.00017063,2]
[392379930,1761412252257,-500.0,0.00017063,2]
[392379931,1761412252266,-516.28547324,0.00017063,2]
[392379932,1761412252275,-1000.0,0.00017063,2]
[392379933,1761412252283,-500.0,0.00017063,2]
[392379934,1761412252292,-500.0,0.00017063,2]
[392379935,1761412252300,-500.0,0.00017063,2]
[392379936,1761412252309,-500.0,0.00017063,2]
[392379937,1761412252318,-500.0,0.00017063,2]
[392379938,1761412252327,-500.0,0.00017063,2]
[392379939,1761412252336,-257.73813215,0.00017063,2]
[392379940,1761412252345,-500.0,0.00017063,2]
[392379941,1761412252354,-500.0,0.00017063,2]
[392379942,1761412252363,-500.0,0.00017063,2]
[392379943,1761412252372,-500.0,0.00017063,2]
[392379944,1761412252381,-500.0,0.00017063,2]
[392379945,1761412252391,-500.0,0.00017063,2]
[392379946,1761412252400,-500.0,0.00017063,2]
[392379947,1761412252412,-500.0,0.00017063,2]
[392379948,1761412252421,-500.0,0.00017063,2]
[392379949,1761412252430,-500.0,0.00017063,2]
[392379950,1761412252439,-467.55194394,0.00017063,2]
[392379951,1761412252449,-500.0,0.00017063,2]
[392379952,1761412252458,-500.0,0.00017063,2]
[392379953,1761412252469,-277.88716452,0.00017063,2]
[392379954,1761412252479,-500.0,0.00017063,2]
[392379955,1761412252488,-500.0,0.00017063,2]
[392379956,1761412252497,-500.0,0.00017063,2]
[392379957,1761412252506,-500.0,0.00017063,2]
[392379958,1761412252515,-1779.66,0.00017063,2]
[392379959,1761412252524,-506.70643569,0.00017063,2]
[392379960,1761412252533,-483.85445833,0.00017063,2]
[392379961,1761412252542,-500.0,0.00017063,2]
[392379962,1761412252551,-500.0,0.00017063,2]
[392379963,1761412252560,-500.0,0.00017063,2]
[392379964,1761412252569,-500.0,0.00017063,2]
[392379965,1761412252578,-500.0,0.00017063,2]
[392379966,1761412252588,-329.53806721,0.00017063,2]
[392379967,1761412252596,-500.0,0.00017063,2]
[392379968,1761412252605,-500.0,0.00017063,2]
[392379969,1761412252614,-151.0,0.00017063,2]
[392379970,1761412252623,-500.0,0.00017063,2]
[392379971,1761412252632,-500.0,0.00017063,2]
[392379972,1761412252641,-500.0,0.00017063,2]
[392379973,1761412252650,-504.22,0.00017063,2]
[392379974,1761412252659,-500.0,0.00017063,2]
[392379975,1761412252669,-500.0,0.00017063,2]
[392379976,1761412252678,-500.0,0.00017063,2]
[392379977,1761412252687,-500.0,0.00017063,2]
[392379978,1761412252698,-500.0,0.00017063,2]
[392379979,1761412252707,-500.0,0.00017063,2]
[392379980,1761412252718,-500.0,0.00017063,2]
[392379981,1761412252727,-500.0,0.00017063,2]
[392379982,1761412252737,-566.4,0.00017063,2]
[392379983,1761412252748,-500.0,0.00017063,2]
[392379984,1761412252757,-500.0,0.00017063,2]
[392379985,1761412252766,-500.0,0.00017063,2]
[392379986,1761412252776,-500.0,0.00017063,2]
[392379987,1761412252786,-500.0,0.00017063,2]
[392379988,1761412252796,-500.0,0.00017063,2]
[392379989,1761412252807,-151.0,0.00017063,2]
[392379990,1761412252815,-500.0,0.00017063,2]
[392379991,1761412252824,-500.0,0.00017063,2]
[392379992,1761412252834,-500.0,0.00017063,2]
[392379993,1761412252842,-500.0,0.00017063,2]
[392379994,1761412252851,-500.0,0.00017063,2]
[392379995,1761412252860,-1762.32,0.00017063,2]
[392379996,1761412252870,-500.19237435,0.00017063,2]
[392379997,1761412252879,-500.0,0.00017063,2]
[392379998,1761412252888,-500.0,0.00017063,2]
[392379999,1761412252897,-500.0,0.00017063,2]
[392380000,1761412252906,-500.0,0.00017063,2]
[392380001,1761412252915,-500.0,0.00017063,2]
[392380002,1761412252925,-573.19,0.00017063,2]
[392380003,1761412252934,-500.0,0.00017063,2]
[392380004,1761412252943,-151.0,0.00017063,2]
[392380005,1761412252952,-151.0,0.00017063,2]
[392380006,1761412252960,-387.966036,0.00017063,2]
[392380007,1761412252970,-387.966036,0.00017063,2]
[392380008,1761412252979,-387.966036,0.00017063,2]
[392380009,1761412252988,-387.966036,0.00017063,2]
[392380010,1761412252997,-151.000006,0.00017063,2]
[392380011,1761412253006,-500.0,0.00017063,2]
[392380012,1761412253015,-168.78125966,0.00017063,2]
[392380013,1761412253026,-500.0,0.00017063,2]
[392380014,1761412253040,-283.20215893,0.00017063,2]
[392380015,1761412253049,-500.0,0.00017064,2]
[392380016,1761412253059,-380.1054039,0.00017064,2]
[392380017,1761412253069,-500.0,0.00017064,2]
[392380018,1761412253079,-502.67402379,0.00017064,2]
[392380019,1761412253088,-500.0,0.00017064,2]
[392380020,1761412253098,-500.0,0.00017064,2]
[392380021,1761412253107,-541.8716502,0.00017064,2]
[392380022,1761412253118,-500.0,0.00017064,2]
[392380023,1761412253127,-500.0,0.00017064,2]
[392380024,1761412253136,-3348.33,0.00017064,2]
[392380025,1761412253145,-500.0,0.00017064,2]
[392380026,1761412253155,-505.67,0.00017064,2]
[392380027,1761412253165,-500.0,0.00017064,2]
[392380028,1761412253175,-450.0,0.00017064,2]
[392380029,1761412253184,-1836.93,0.00017064,2]
[392380030,1761412253194,-500.0,0.00017064,2]
[392380031,1761412253203,-641.83,0.00017064,2]
[392380032,1761412253211,-555.07,0.00017064,2]
[392380033,1761412253221,-1008.79,0.00017064,2]
[392380034,1761412253232,-500.0,0.00017064,2]
[392380035,1761412253241,-1121.25,0.00017064,2]
[392380036,1761412253249,-500.0,0.00017064,2]
[392380037,1761412253258,-500.0,0.00017064,2]
[392380038,1761412253268,-500.0,0.00017064,2]
[392380039,1761412253277,-500.0,0.00017064,2]
[392380040,1761412253286,-1143.21,0.00017064,2]
[392380041,1761412253295,-500.0,0.00017064,2]
[392380042,1761412253305,-966.4,0.00017064,2]
[392380043,1761412253314,-500.0,0.00017064,2]
[392380044,1761412253323,-500.0,0.00017064,2]
[392380045,1761412253332,-500.0,0.00017064,2]
[392380046,1761412253341,-264.53628771,0.00017064,2]
[392380047,1761412253351,-500.0,0.00017064,2]
[392380048,1761412253360,-500.0,0.00017064,2]
[392380049,1761412253369,-644.10291256,0.00017064,2]
[392380050,1761412253379,-500.0,0.00017064,2]
[392380051,1761412253388,-2972.44,0.00017064,2]
[392380052,1761412253398,-500.0,0.00017064,2]
[392380053,1761412253407,-500.0,0.00017064,2]
[392380054,1761412253416,-500.0,0.00017064,2]
[392380055,1761412253425,-1260.61,0.00017064,2]
[392380056,1761412253435,-500.0,0.00017064,2]
[392380057,1761412253444,-500.0,0.00017064,2]
[392380058,1761412253453,-500.0,0.00017064,2]
[392380059,1761412253463,-500.0,0.00017064,2]
[392380060,1761412253473,-500.0,0.00017064,2]
[392380061,1761412253482,-500.0,0.00017064,2]
[392380062,1761412253491,-500.0,0.00017064,2]
[392380063,1761412253500,-500.0,0.00017064,2]
[392380064,1761412253510,-500.0,0.00017064,2]
[392380065,1761412253518,-186.19022959,0.00017064,2]
[392380066,1761412253528,-500.0,0.00017064,2]
[392380067,1761412253537,-500.0,0.00017064,2]
[392380068,1761412253547,-500.0,0.00017064,2]
[392380069,1761412253556,-1880.51,0.00017064,2]
[392380070,1761412253565,-2058.75,0.00017064,2]
[392380071,1761412253574,-151.0,0.00017064,2]
[392380072,1761412253583,-151.0,0.00017064,2]
[392380073,1761412253592,-500.0,0.00017064,2]
[392380074,1761412253602,-500.0,0.00017064,2]
[392380075,1761412253611,-500.0,0.00017064,2]
[392380076,1761412253620,-500.0,0.00017064,2]
[392380077,1761412253629,-502.74354216,0.00017064,2]
[392380078,1761412253638,-1817.01,0.00017064,2]
[392380079,1761412253649,-387.966036,0.00017064,2]
[392380080,1761412253659,-387.966036,0.00017064,2]
[392380081,1761412253668,-387.966036,0.00017064,2]
[392380082,1761412253677,-387.966036,0.00017064,2]
[392380083,1761412253686,-306.126,0.00017065,2]
[392380084,1761412253695,-477.82944261,0.00017067,2]
[392380085,1761412253704,-860.09299671,0.00017067,2]
[392380086,1761412253713,-1529.05421637,0.00017067,2]
[392380087,1761412253722,-2389.14721307,0.00017067,2]
[392380088,1761412253731,-3440.37198682,0.00017067,2]
[392380089,1761412253741,-4682.72853762,0.00017067,2]
[392380090,1761412253750,-6116.21686546,0.00017067,2]
[392380091,1761412253760,-7740.83697035,0.00017067,2]
[392380092,1761412253769,-171.56145814,0.00017067,2]
[392380093,1761412253778,-204.68309019,0.00017067,2]
[392380094,1761412253786,-233.92353165,0.00017067,2]
[392380095,1761412253795,-365.5055182,0.00017067,2]
[392380096,1761412253805,-387.966036,0.00017068,2]
[392380097,1761412253814,-387.966036,0.00017068,2]
[392380098,1761412253823,-387.966036,0.00017068,2]
[392380099,1761412253833,-387.966038,0.00017068,2]
[392380100,1761412253842,-261.0,0.00017071,2]
[392380101,1761412253851,-500.64201838,0.00017073,2]
[392380102,1761412253860,-500.0,0.00017073,2]
[392380103,1761412253870,-500.0,0.00017073,2]
[392380104,1761412253879,-500.5999982,0.00017073,2]
[392380105,1761412253889,-500.0,0.00017073,2]
[392380106,1761412253898,-280.6450641,0.00017073,2]
[392380107,1761412253907,-500.0,0.00017073,2]
[392380108,1761412253916,-608.75644017,0.00017073,2]
[392380109,1761412253926,-619.82603819,0.00017073,2]
[392380110,1761412253935,-165.7192232,0.00017073,2]
[392380111,1761412253944,-500.0,0.00017073,2]
[392380112,1761412253953,-500.0,0.00017073,2]
[392380113,1761412253962,-500.0,0.00017073,2]
[392380114,1761412253972,-500.0,0.00017073,2]
[392380115,1761412253981,-500.0,0.00017073,2]
[392380116,1761412253990,-500.0,0.00017073,2]
[392380117,1761412254000,-500.0,0.00017073,2]
[392380118,1761412254009,-500.0,0.00017073,2]
[392380119,1761412254018,-502.22635647,0.00017073,2]
[392380120,1761412254028,-500.0,0.00017073,2]
[392380121,1761412254041,-500.0,0.00017073,2]
[392380122,1761412254050,-500.0,0.00017073,2]
[392380123,1761412254059,-500.0,0.00017073,2]
[392380124,1761412254069,-523.48233617,0.00017073,2]
[392380125,1761412254081,-536.55418288,0.00017074,2]
[392380126,1761412254090,-498.94834872,0.00017074,2]
[392380127,1761412254100,-199.79341934,0.00017074,2]
[392380128,1761412254111,-168.0,0.00017075,2]
[392380129,1761412254120,-151.0,0.000171,2]
[392380130,1761412254130,-151.0,0.000171,2]
[392380131,1761412254139,-626.0,0.00017105,2]
[392380132,1761412254149,-196.0,0.00017105,2]
[392380133,1761412254158,-525.80161827,0.0001711,2]
[392380134,1761412254167,-151.0,0.00017117,2]
[392380135,1761412254176,-151.0,0.00017118,2]
[392380136,1761412254186,-151.0,0.00017118,2]
[392380137,1761412254195,-151.0,0.00017118,2]
[392380138,1761412254204,-151.0,0.00017118,2]
[392380139,1761412254213,-4170.0,0.00017148,2]
[392380140,1761412254222,-196.0,0.00017161,2]
[392380141,1761412254231,-200.47166272,0.00017172,2]
[392380142,1761412254240,-316.11889476,0.00017172,2]
[392380143,1761412254249,-200.35276751,0.00017173,2]
[392380144,1761412254258,-262.78653592,0.00017173,2]
[392380145,1761412254267,-199.47023482,0.00017173,2]
[392380146,1761412254275,-230.10587464,0.00017173,2]
[392380147,1761412254285,-151.0,0.000172,2]
[392380148,1761412254294,-151.0,0.000172,2]
[392380149,1761412254304,-151.0,0.000172,2]
[392380150,1761412254313,-626.0,0.0001721,2]
[392380151,1761412254322,-196.0,0.00017216,2]
[392380152,1761412254331,-734.0,0.00017216,2]
[392380153,1761412254340,-224.0,0.00017226,2]
[392380154,1761412254348,-626.0,0.00017237,2]
[392380155,1761412254357,-200.0,0.00017237,2]
[392380156,1761412254367,-179.20550714,0.00017237,2]
[392380157,1761412254375,-648.15,0.00017238,2]
[392380158,1761412254385,-500.0,0.00017238,2]
[392380159,1761412254394,-500.0,0.00017238,2]
[392380160,1761412254403,-501.7878354,0.00017238,2]
[392380161,1761412254412,-500.0,0.00017238,2]
[392380162,1761412254421,-500.0,0.00017238,2]
[392380163,1761412254430,-500.0,0.00017238,2]
[392380164,1761412254439,-500.0,0.00017238,2]
[392380165,1761412254448,-500.0,0.00017238,2]
[392380166,1761412254457,-1334.53,0.00017238,2]
[392380167,1761412254467,-500.0,0.00017238,2]
[392380168,1761412254476,-500.0,0.00017238,2]
[392380169,1761412254485,-500.0,0.00017238,2]
[392380170,1761412254494,-500.0,0.00017238,2]
[392380171,1761412254502,-501.35499499,0.00017238,2]
[392380172,1761412254512,-556.8,0.00017238,2]
[392380173,1761412254521,-334.7793662,0.00017238,2]
[392380174,1761412256923,5000.0,0.00016889,2]
[392380175,1761412289170,5000.01,0.0001679,2]
[392380176,1761412289193,10000.01,0.0001679,2]
[392380177,1761412289214,10000.01,0.0001679,2]
[392380178,1761412289236,10000.01,0.0001679,2]
[392380179,1761412289258,10000.01,0.0001679,2]
[392380180,1761412289282,10000.01,0.0001679,2]
[392380181,1761412289303,10000.01,0.0001679,2]
[392380182,1761412289324,10000.01,0.0001679,2]
[392380183,1761412289345,10000.01,0.0001679,2]
[392380184,1761412289367,10000.01,0.0001679,2]
[392380185,1761412303724,-212.00817911,0.00016622,2]
[392380186,1761412307187,-196.0,0.00016622,2]
[392380187,1761412311710,-7900.71561299,0.00016622,2]
[392380188,1761412311837,-10000.01,0.00016622,2]
[392380189,1761412312000,-10000.01,0.00016622,2]
[392380190,1761412315160,-196.0,0.00016,2]
[392380191,1761412315169,-9804.01,0.00016622,2]
[392380192,1761412315212,-4377.54422623,0.00016622,2]
[392380193,1761412315235,-1244.92154754,0.00016622,2]
[392380194,1761412315353,-5000.0,0.00016622,2]
[392380195,1761412315458,0.01,0.00016055,2]
[392380196,1761412315488,-195.99,0.00016055,2]
[392380197,1761412315758,196.0,0.00016111,2]
[392380198,1761412316061,196.0,0.00016166,2]
[392380199,1761412316512,196.0,0.00016221,2]
[392380200,1761412316672,196.0,0.00016276,2]
[392380201,1761412316964,196.0,0.00016332,2]
[392380202,1761412317273,196.0,0.00016387,2]
[392380203,1761412318074,3288.69585213,0.00016456,2]
[392380204,1761412318109,196.0,0.00016442,2]
[392380205,1761412318433,196.0,0.00016497,2]
[392380206,1761412318966,196.0,0.00016553,2]
[392380207,1761412319269,196.0,0.00016608,2]
[392380208,1761412327224,-196.0,0.00016497,2]
[392380209,1761412332328,175.5519983,0.00016618,2]
[392380210,1761412334711,5000.0,0.00016663,2]
[392380211,1761412342440,2404.09711681,0.00016469,2]
[392380212,1761412351070,5000.0,0.00016469,2]
[392380213,1761412359487,2595.91288319,0.00016469,2]
[392380214,1761412363752,-196.00735381,0.00016469,2]
[392380215,1761412365736,-196.0,0.00016469,2]
[392380216,1761412366477,-2012.079763,0.00016469,2]
[392380217,1761412378736,-196.0,0.00016497,2]
[392380218,1761412381332,-196.0,0.00016497,2]
[392380219,1761412382902,5000.0,0.00016302,2]
[392380220,1761412405523,5000.0,0.00016302,2]
[392380221,1761412423725,-212.71980663,0.00016497,2]
[392380222,1761412427450,5000.0,0.00016497,2]
[392380223,1761412436004,-4395.28019337,0.00016497,2]
[392380224,1761412438543,196.0,0.00016,2]
[392380225,1761412438840,196.0,0.0001604,2]
[392380226,1761412439133,196.0,0.00016081,2]
[392380227,1761412439425,196.0,0.00016121,2]
[392380228,1761412439731,196.0,0.00016162,2]
[392380229,1761412440110,196.0,0.00016202,2]
[392380230,1761412440324,33.44961326,0.00016242,2]
[392380231,1761412440345,162.55038674,0.00016242,2]
[392380232,1761412440630,196.0,0.00016283,2]
[392380233,1761412440934,196.0,0.00016323,2]
[392380234,1761412441295,196.0,0.00016363,2]
[392380235,1761412441621,196.0,0.00016404,2]
[392380236,1761412441925,196.0,0.00016444,2]
[392380237,1761412442179,196.0,0.00016485,2]
[392380238,1761412443509,5000.0,0.00016497,2]
[392380239,1761412450931,3661.45961326,0.00016497,2]
[392380240,1761412450955,1338.54038674,0.00016497,2]
[392380241,1761412455442,300.0,0.000163,2]
[392380242,1761412466055,-196.0,0.00016525,2]
[392380243,1761412467288,5000.0,0.000165,2]
[392380244,1761412467667,300.0,0.000163,2]
[392380245,1761412475888,4308.01,0.00016525,2]
[392380246,1761412475912,691.99,0.00016525,2]
[392380247,1761412491717,5000.0,0.00016565,2]
[392380248,1761412496403,-196.0,0.00016565,2]
[392380249,1761412499525,5000.0,0.00016606,2]
[392380250,1761412511529,-196.0,0.00016606,2]
[392380251,1761412515399,5000.0,0.00016606,2]
[392380252,1761412522808,4608.01,0.00016,2]
[392380253,1761412523025,8923.88619866,0.00016,2]
[392380254,1761412523689,1076.12380134,0.00016606,2]
[392380255,1761412523711,3923.87619866,0.00016606,2]
[392380256,1761412540112,5000.0,0.00016646,2]
[392380257,1761412547945,5000.0,0.00016646,2]
[392380258,1761412561444,196.0,0.00016,2]
[392380259,1761412561604,196.0,0.00016062,2]
[392380260,1761412561857,196.0,0.00016124,2]
[392380261,1761412562152,196.0,0.00016185,2]
[392380262,1761412562450,196.0,0.00016247,2]
[392380263,1761412562738,196.0,0.00016309,2]
[392380264,1761412563073,196.0,0.00016371,2]
[392380265,1761412563434,196.0,0.00016432,2]
[392380266,1761412563791,5000.0,0.000167,2]
[392380267,1761412563832,196.0,0.00016494,2]
[392380268,1761412564040,196.0,0.00016556,2]
[392380269,1761412564337,196.0,0.00016618,2]
[392380270,1761412564641,196.0,0.00016679,2]
[392380271,1761412571588,574.8462798,0.000167,2]
[392380272,1761412587983,2073.1637202,0.000167,2]
[392380273,1761412676553,196.0,0.00016,2]
[392380274,1761412676848,196.0,0.0001606,2]
[392380275,1761412677663,196.0,0.0001612,2]
[392380276,1761412677997,196.0,0.0001618,2]
[392380277,1761412678275,196.0,0.0001624,2]
[392380278,1761412678590,196.0,0.000163,2]
[392380279,1761412678924,196.0,0.0001636,2]
[392380280,1761412679226,196.0,0.0001642,2]
[392380281,1761412679523,196.0,0.0001648,2]
[392380282,1761412679826,196.0,0.0001654,2]
[392380283,1761412680127,196.0,0.000166,2]
[392380284,1761412680443,196.0,0.0001666,2]
[392380285,1761412723866,-215.53506521,0.000167,2]
[392380286,1761412781360,5000.0,0.000167,2]
[392380287,1761412796701,196.0,0.00016,2]
[392380288,1761412797006,196.0,0.00016066,2]
[392380289,1761412797314,196.0,0.00016131,2]
[392380290,1761412797596,196.0,0.00016197,2]
[392380291,1761412797898,196.0,0.00016263,2]
[392380292,1761412798212,196.0,0.00016328,2]
[392380293,1761412798499,196.0,0.00016394,2]
[392380294,1761412798833,196.0,0.00016459,2]
[392380295,1761412799666,196.0,0.00016525,2]
[392380296,1761412799986,196.0,0.00016591,2]
[392380297,1761412800275,196.0,0.00016656,2]
[392380298,1761412803698,2767.95329555,0.000167,2]
[392380299,1761412864870,-160.0,0.000167,2]
[392380300,1761412879877,-500.0,0.000167,2]
[392380301,1761412895004,-196.0,0.00016722,2]
[392380302,1761412910725,-1128.47552518,0.00016753,2]
[392380303,1761412915752,196.0,0.00016,2]
[392380304,1761412916032,196.0,0.00016088,2]
[392380305,1761412916355,196.0,0.00016175,2]
[392380306,1761412916639,196.0,0.00016263,2]
[392380307,1761412916952,196.0,0.0001635,2]
[392380308,1761412917234,196.0,0.00016438,2]
[392380309,1761412917570,196.0,0.00016525,2]
[392380310,1761412917855,196.0,0.00016613,2]
[392380311,1761412918178,196.0,0.000167,2]
[392380312,1761412928232,-1128.47552518,0.00016781,2]
[392380313,1761412940698,553.24,0.0001678,3]
[392380314,1761412943351,-300.0,0.00016785,2]
[392380315,1761412958419,-300.0,0.00016786,2]
[392380316,1761412958449,-1200.0,0.00016786,2]
[392380317,1761412958481,1200.0,0.00016785,2]
[392380318,1761412963853,500.0,0.00016785,2]
[392380319,1761412964107,500.0,0.00016785,2]
[392380320,1761412964177,500.0,0.00016785,2]
[392380321,1761412964431,500.0,0.00016785,2]
[392380322,1761412964461,500.0,0.00016785,2]
[392380323,1761412964632,500.0,0.00016785,2]
[392380324,1761412965154,500.0,0.00016785,2]
[392380325,1761412965192,500.0,0.00016785,2]
[392380326,1761412965306,500.0,0.00016785,2]
[392380327,1761412965494,500.0,0.00016785,2]
[392380328,1761412965763,500.0,0.00016785,2]
[392380329,1761412965793,300.01,0.00016785,2]
[392380330,1761412965816,199.99,0.00016785,2]
[392380331,1761412965850,500.0,0.00016785,2]
[392380332,1761412966276,500.0,0.00016785,2]
[392380333,1761412966304,500.0,0.00016785,2]
[392380334,1761412966344,500.0,0.00016785,2]
[392380335,1761412966380,500.0,0.00016785,2]
[392380336,1761412966545,500.0,0.00016785,2]
[392380337,1761412966603,500.0,0.00016785,2]
[392380338,1761412966637,500.0,0.00016785,2]
[392380339,1761412967385,500.0,0.00016785,2]
[392380340,1761412967412,500.0,0.00016785,2]
[392380341,1761412967440,500.0,0.00016785,2]
[392380342,1761412967489,500.0,0.00016785,2]
[392380343,1761412967518,500.0,0.00016785,2]
[392380344,1761412967569,500.0,0.00016785,2]
[392380345,1761412967596,500.0,0.00016785,2]
[392380346,1761412967632,323.97908609,0.00016785,2]
[392380347,1761412967661,500.0,0.00016785,2]
[392380348,1761412967690,500.0,0.00016785,2]